fUST/lending_fUST_20250115
["ID","MTS","AMOUNT","RATE_DAILY","PERIOD"]
[349028831,1736943051725,-151.0,0.00020817,2]
[349028832,1736943051735,-548.12,0.00020817,3]
[349028833,1736943051744,-14963.81,0.00020817,3]
[349028834,1736943051754,-623.75,0.00020817,3]
[349028835,1736943051763,-500.0,0.00020817,3]
[349028836,1736943051772,-500.0,0.00020817,3]
[349028837,1736943051782,-500.0,0.00020817,3]
[349028838,1736943051792,-151.0,0.00020817,2]
[349028839,1736943051802,-500.0,0.00020817,3]
[349028840,1736943051813,-500.0,0.00020817,3]
[349028841,1736943051823,-500.0,0.00020817,3]
[349028842,1736943051832,-596.36,0.00020817,3]
[349028843,1736943051842,-500.0,0.00020817,3]
[349028844,1736943051851,-500.0,0.00020817,3]
[349028845,1736943051861,-600.28,0.00020817,3]
[349028846,1736943051870,-2849.95,0.00020817,3]
[349028847,1736943051880,-500.0,0.00020817,3]
[349028848,1736943051890,-500.0,0.00020817,3]
[349028849,1736943051899,-561.21,0.00020817,3]
[349028850,1736943051908,-500.0,0.00020818,3]
[349028851,1736943051918,-500.0,0.00020818,3]
[349028852,1736943051927,-500.0,0.00020818,3]
[349028853,1736943051937,-749.87,0.00020818,3]
[349028854,1736943051946,-500.0,0.00020818,3]
[349028855,1736943051955,-500.0,0.00020819,3]
[349028856,1736943051965,-500.0,0.00020819,3]
[349028857,1736943051974,-500.0,0.00020819,3]
[349028858,1736943051984,-500.0,0.00020819,3]
[349028859,1736943051994,-541.14784716,0.00020821,3]
[349028860,1736943052003,-500.0,0.00020821,3]
[349028861,1736943052014,-5141.65,0.00020821,3]
[349028862,1736943052024,-500.0,0.00020821,3]
[349028863,1736943052034,-4706.62,0.00020821,3]
[349028864,1736943052044,-512.83482563,0.00020861,2]
[349028865,1736943052054,-1000.0,0.0002088,2]
[349028866,1736943052064,-401.56226024,0.000209,2]
[349028867,1736943052074,-997.7,0.00020953,3]
[349028868,1736943052083,-638.85,0.00020953,3]
[349028869,1736943052092,-540.81,0.00020953,3]
[349028870,1736943052102,-500.0,0.00020953,3]
[349028871,1736943052111,-674.2,0.00020953,3]
[349028872,1736943052121,-500.0,0.00020953,3]
[349028873,1736943052131,-470.98,0.00020953,3]
[349028874,1736943052141,-500.0,0.00020953,3]
[349028875,1736943052151,-762.72,0.00020953,3]
[349028876,1736943052161,-705.35,0.00020953,3]
[349028877,1736943052171,-1259.12,0.00020953,3]
[349028878,1736943052181,-1163.39,0.00020953,3]
[349028879,1736943052191,-573.21,0.00020953,3]
[349028880,1736943052201,-724.23,0.00020953,3]
[349028881,1736943052210,-500.0,0.00020953,3]
[349028882,1736943052220,-26631.12,0.00020953,3]
[349028883,1736943052229,-574.85,0.00020953,3]
[349028884,1736943052239,-2640.0,0.00020953,3]
[349028885,1736943052249,-500.0,0.00020953,3]
[349028886,1736943052258,-678.64,0.00020953,3]
[349028887,1736943052268,-500.0,0.00020953,3]
[349028888,1736943052277,-518.21,0.00020953,3]
[349028889,1736943052286,-500.0,0.00020953,3]
[349028890,1736943052296,-476.02,0.00020954,3]
[349028891,1736943052306,-500.0,0.00020954,3]
[349028892,1736943052317,-500.0,0.00020954,3]
[349028893,1736943052328,-607.04394082,0.00020954,3]
[349028894,1736943052338,-500.0,0.00020954,3]
[349028895,1736943052348,-500.0,0.00020954,3]
[349028896,1736943052358,-500.0,0.00020954,3]
[349028897,1736943052368,-500.0,0.00020954,3]
[349028898,1736943052377,-500.0,0.00020954,3]
[349028899,1736943052387,-706.86,0.00020954,2]
[349028900,1736943052398,-574.0,0.00020954,3]
[349028901,1736943052407,-500.0,0.00020954,3]
[349028902,1736943052417,-548.12,0.00020954,3]
[349028903,1736943052426,-3191.91781985,0.00020954,3]
[349028904,1736943052444,-2887.51556921,0.00020954,3]
[349028905,1736943308900,175.312586,0.00013973,2]
[349028935,1736944156108,-306.50781755,0.00018711,2]
[349028940,1736944177256,175.312586,0.00013973,2]
[349028998,1736944232424,-14.48316402,0.00018711,2]
[349029000,1736944232436,-437.03779696,0.000188,2]
[349029002,1736944232446,-171.91271294,0.0001881,2]
[349029004,1736944232456,-179.52556545,0.000189,2]
[349029006,1736944232466,-476.9602568,0.00019973,2]
[349029008,1736944232475,-300.0,0.00019986,2]
[349029010,1736944232485,-11691.0,0.00019986,2]
[349029012,1736944232494,-500.0,0.0001999,3]
[349029014,1736944232504,-884.67,0.0001999,3]
[349029017,1736944232514,-500.0,0.0001999,3]
[349029019,1736944232523,-500.0,0.0001999,3]
[349029022,1736944232533,-500.0,0.0001999,3]
[349029025,1736944232543,-500.0,0.0001999,3]
[349029028,1736944232552,-467.00589526,0.00019991,3]
[349029033,1736944232564,-1650.90410474,0.00019991,3]
[349029036,1736944232574,-500.0,0.00019991,3]
[349029039,1736944232584,-922.1,0.00019991,3]
[349029041,1736944232593,-588.73,0.00019991,3]
[349029044,1736944232603,-500.0,0.00019991,3]
[349029047,1736944232612,-500.0,0.00019991,3]
[349029049,1736944232622,-500.0,0.00019991,3]
[349029051,1736944232634,-500.0,0.00019991,3]
[349029054,1736944232643,-500.0,0.00019991,3]
[349029057,1736944232653,-722.24,0.00019991,3]
[349029059,1736944232662,-500.0,0.00019991,3]
[349029061,1736944232671,-500.0,0.00019991,3]
[349029063,1736944232680,-644.29,0.00019991,3]
[349029065,1736944232690,-581.19,0.00019991,3]
[349029067,1736944232699,-870.67,0.00019991,3]
[349029069,1736944232709,-210.69991682,0.00019991,3]
[349029071,1736944232718,-594.37,0.00019991,3]
[349029073,1736944232728,-500.0,0.00019991,3]
[349029075,1736944232739,-15096.25588147,0.00019991,3]
[349029078,1736944232751,-1063.28000004,0.00019991,3]
[349029080,1736944232763,-745.44784352,0.00019991,3]
[349029082,1736944232774,-546.89221985,0.00019991,3]
[349029183,1736944238152,-302.20405512,0.00019991,3]
[349029184,1736944238162,-500.0,0.00019992,3]
[349029186,1736944238171,-550.36,0.00019992,3]
[349029187,1736944238180,-500.0,0.00019992,3]
[349029188,1736944238189,-500.0,0.00019992,3]
[349029189,1736944238199,-500.0,0.00019992,3]
[349029190,1736944238208,-500.0,0.00019992,3]
[349029191,1736944238217,-500.0,0.00019992,3]
[349029192,1736944238228,-862.04095669,0.00019992,3]
[349029193,1736944238241,-11980.49904331,0.00019992,3]
[349029194,1736944238251,-500.0,0.00019992,3]
[349029195,1736944238261,-500.0,0.00019992,3]
[349029196,1736944238271,-502.04,0.00019992,3]
[349029197,1736944238280,-500.0,0.00019992,3]
[349029198,1736944238289,-500.0,0.00019993,3]
[349029199,1736944238298,-500.0,0.00019993,3]
[349029200,1736944238307,-500.0,0.00019993,3]
[349029201,1736944238317,-500.0,0.00019993,3]
[349029203,1736944238326,-500.0,0.00019993,3]
[349029205,1736944238335,-500.0,0.00019993,3]
[349029206,1736944238344,-500.0,0.00019993,3]
[349029207,1736944238353,-500.0,0.00019993,3]
[349029208,1736944238362,-500.0,0.00019993,3]
[349029209,1736944238371,-500.0,0.00019993,3]
[349029210,1736944238381,-500.0,0.00019993,3]
[349029211,1736944238390,-500.0,0.00019993,3]
[349029212,1736944238399,-500.0,0.00019993,3]
[349029213,1736944238408,-500.0,0.00019993,3]
[349029214,1736944238418,-500.0,0.00019993,3]
[349029215,1736944238427,-500.0,0.00019993,3]
[349029216,1736944238436,-580.78403217,0.00019993,3]
[349029217,1736944238445,-500.0,0.00019993,3]
[349029218,1736944238454,-500.0,0.00019993,3]
[349029219,1736944238463,-500.0,0.00019993,3]
[349029220,1736944238473,-500.0,0.00019993,3]
[349029221,1736944238482,-500.0,0.00019993,3]
[349029222,1736944238491,-500.0,0.00019993,3]
[349029223,1736944238500,-500.0,0.00019993,3]
[349029224,1736944238509,-500.0,0.00019993,3]
[349029225,1736944238519,-500.0,0.00019993,3]
[349029226,1736944238528,-500.0,0.00019993,3]
[349029227,1736944238537,-500.0,0.00019993,3]
[349029228,1736944238546,-500.0,0.00019993,2]
[349029229,1736944238556,-500.0,0.00019993,3]
[349029230,1736944238565,-500.0,0.00019993,3]
[349029231,1736944238574,-500.0,0.00019993,3]
[349029232,1736944238584,-500.0,0.00019993,3]
[349029233,1736944238594,-500.0,0.00019993,3]
[349029234,1736944238603,-500.0,0.00019993,3]
[349029235,1736944238612,-500.0,0.00019993,3]
[349029236,1736944238621,-500.0,0.00019993,3]
[349029237,1736944238631,-500.0,0.00019993,3]
[349029238,1736944238640,-500.0,0.00019993,3]
[349029239,1736944238649,-500.0,0.00019993,3]
[349029240,1736944238658,-500.0,0.00019993,3]
[349029241,1736944238668,-500.0,0.00019993,3]
[349029242,1736944238677,-500.0,0.00019993,3]
[349029243,1736944238686,-500.0,0.00019993,3]
[349029244,1736944238695,-500.0,0.00019993,3]
[349029245,1736944238705,-500.0,0.00019993,3]
[349029246,1736944238715,-254.09655881,0.00019993,3]
[349029247,1736944238727,-500.0,0.00019993,3]
[349029248,1736944238738,-500.0,0.00019993,3]
[349029249,1736944238748,-500.0,0.00019993,3]
[349029250,1736944238758,-151.96,0.00019994,2]
[349029251,1736944238768,-500.0,0.00019994,3]
[349029252,1736944238777,-629.25,0.00019994,3]
[349029253,1736944238786,-500.0,0.00019994,3]
[349029254,1736944238796,-500.0,0.00019994,3]
[349029255,1736944238806,-2046.57,0.00019994,3]
[349029256,1736944238815,-175.477,0.00019994,2]
[349029257,1736944238824,-1536.16,0.00019994,3]
[349029258,1736944238834,-500.0,0.00019994,3]
[349029259,1736944238844,-500.0,0.00019994,3]
[349029260,1736944238853,-500.0,0.00019994,3]
[349029261,1736944238863,-500.0,0.00019994,3]
[349029262,1736944238873,-604.24,0.00019994,3]
[349029263,1736944238883,-500.0,0.00019994,3]
[349029264,1736944238893,-500.0,0.00019994,3]
[349029265,1736944238902,-500.0,0.00019994,3]
[349029266,1736944238911,-500.0,0.00019994,3]
[349029267,1736944238923,-500.0,0.00019994,3]
[349029268,1736944238932,-500.0,0.00019994,3]
[349029269,1736944238942,-500.0,0.00019994,3]
[349029270,1736944238952,-500.0,0.00019994,3]
[349029271,1736944238963,-500.0,0.00019994,3]
[349029272,1736944238972,-500.0,0.00019994,3]
[349029273,1736944238982,-500.0,0.00019994,3]
[349029274,1736944238993,-4188.84,0.00019994,3]
[349029275,1736944239003,-500.0,0.00019994,3]
[349029276,1736944239012,-500.0,0.00019994,3]
[349029277,1736944239022,-294.98514241,0.00019995,3]
[349029278,1736944239031,-3855.6,0.00019995,3]
[349029279,1736944239040,-341.9114223,0.00019999,2]
[349029280,1736944239050,-179.52987098,0.0002,2]
[349029281,1736944239060,-5138.38648411,0.0002,2]
[349029282,1736944239070,-862.69388508,0.0002,5]
[349029283,1736944239083,-671.49255367,0.0002,5]
[349029290,1736944240316,-322.0,0.0002,5]
[349029291,1736944240328,-161920.46624378,0.0002,5]
[349029292,1736944240339,-1916.11646996,0.0002,5]
[349029293,1736944240350,-322.7,0.0002,5]
[349029294,1736944240427,-28253.65735431,0.0002,5]
[349029295,1736944240438,-2064.87795131,0.0002,5]
[349029296,1736944240449,-950.0,0.0002,5]
[349029324,1736944243331,-500.0,0.0001999,3]
[349029325,1736944243341,-500.0,0.00019991,3]
[349029327,1736944243351,-44017.98791372,0.0002,5]
[349029329,1736944243362,-705.96,0.0002,5]
[349029331,1736944243374,-7571.22422365,0.0002,5]
[349029333,1736944243390,-71246.74964511,0.0002,5]
[349029335,1736944243400,-161.96782197,0.00020028,2]
[349029336,1736944243410,-500.0,0.00020127,3]
[349029337,1736944243419,-884.67,0.00020127,3]
[349029339,1736944243430,-500.0,0.00020127,3]
[349029340,1736944243439,-500.0,0.00020127,3]
[349029341,1736944243449,-500.0,0.00020127,3]
[349029342,1736944243458,-500.0,0.00020127,3]
[349029343,1736944243468,-500.0,0.00020127,3]
[349029344,1736944243478,-500.0,0.00020128,3]
[349029345,1736944243488,-922.1,0.00020128,3]
[349029346,1736944243498,-588.73,0.00020128,3]
[349029347,1736944243507,-500.0,0.00020128,3]
[349029348,1736944243516,-500.0,0.00020128,3]
[349029349,1736944243526,-500.0,0.00020128,3]
[349029350,1736944243535,-722.24,0.00020128,3]
[349029351,1736944243545,-500.0,0.00020128,3]
[349029352,1736944243555,-500.0,0.00020128,3]
[349029353,1736944243565,-644.29,0.00020128,3]
[349029354,1736944243574,-581.19,0.00020128,3]
[349029355,1736944243584,-870.67,0.00020128,3]
[349029356,1736944243593,-594.37,0.00020128,3]
[349029357,1736944243603,-500.0,0.00020128,3]
[349029358,1736944243612,-17754.08,0.00020128,3]
[349029359,1736944243622,-500.0,0.00020128,3]
[349029360,1736944243633,-550.36,0.00020129,3]
[349029361,1736944243643,-500.0,0.00020129,3]
[349029362,1736944243652,-500.0,0.00020129,3]
[349029363,1736944243662,-500.0,0.00020129,3]
[349029364,1736944243671,-500.0,0.00020129,3]
[349029365,1736944243681,-500.0,0.00020129,3]
[349029366,1736944243693,-12842.54,0.00020129,3]
[349029367,1736944243702,-480.5,0.00020129,3]
[349029368,1736944243712,-502.04,0.00020129,3]
[349029369,1736944243723,-500.0,0.00020129,3]
[349029370,1736944243732,-500.0,0.0002013,3]
[349029371,1736944243742,-500.0,0.0002013,3]
[349029372,1736944243751,-500.0,0.0002013,3]
[349029373,1736944243854,-500.0,0.0002013,3]
[349029374,1736944243864,-500.0,0.0002013,3]
[349029375,1736944243873,-500.0,0.0002013,3]
[349029376,1736944243885,-500.0,0.0002013,3]
[349029377,1736944243894,-500.0,0.0002013,3]
[349029378,1736944243904,-500.0,0.0002013,3]
[349029379,1736944243915,-294.00151701,0.0002013,3]
[349029380,1736944243927,-500.0,0.0002013,3]
[349029381,1736944243936,-500.0,0.0002013,3]
[349029382,1736944243946,-500.0,0.0002013,3]
[349029383,1736944243957,-500.0,0.0002013,3]
[349029384,1736944243966,-500.0,0.0002013,3]
[349029385,1736944243976,-500.0,0.0002013,3]
[349029386,1736944243986,-500.0,0.0002013,3]
[349029387,1736944243998,-500.0,0.0002013,3]
[349029388,1736944244008,-500.0,0.0002013,3]
[349029389,1736944244018,-500.0,0.0002013,3]
[349029390,1736944244027,-500.0,0.0002013,3]
[349029391,1736944244036,-500.0,0.0002013,3]
[349029392,1736944244046,-500.0,0.0002013,3]
[349029393,1736944244055,-500.0,0.0002013,3]
[349029394,1736944244065,-500.0,0.0002013,3]
[349029395,1736944244075,-228.8780099,0.0002013,3]
[349029396,1736944244085,-500.0,0.0002013,2]
[349029397,1736944244094,-500.0,0.0002013,3]
[349029398,1736944244104,-500.0,0.0002013,3]
[349029399,1736944244114,-500.0,0.0002013,3]
[349029400,1736944244123,-500.0,0.0002013,3]
[349029401,1736944244136,-500.0,0.0002013,3]
[349029402,1736944244145,-427.04093804,0.0002013,3]
[349029403,1736944244155,-500.0,0.0002013,3]
[349029404,1736944244164,-500.0,0.0002013,3]
[349029405,1736944244173,-208.38799147,0.0002013,3]
[349029406,1736944244182,-500.0,0.0002013,3]
[349029407,1736944244191,-500.0,0.0002013,3]
[349029408,1736944244200,-500.0,0.0002013,3]
[349029409,1736944244209,-500.0,0.0002013,3]
[349029410,1736944244219,-500.0,0.0002013,3]
[349029411,1736944244228,-448.04138807,0.0002013,3]
[349029412,1736944244238,-500.0,0.0002013,3]
[349029413,1736944244246,-500.0,0.0002013,3]
[349029414,1736944244256,-500.0,0.0002013,3]
[349029415,1736944244266,-500.0,0.00020131,3]
[349029416,1736944244275,-500.0,0.00020131,3]
[349029417,1736944244285,-500.0,0.00020131,3]
[349029418,1736944244294,-2046.57,0.00020131,3]
[349029419,1736944244304,-1536.16,0.00020131,3]
[349029420,1736944244313,-500.0,0.00020131,3]
[349029421,1736944244323,-500.0,0.00020131,3]
[349029422,1736944244336,-500.0,0.00020131,3]
[349029423,1736944244345,-500.0,0.00020131,3]
[349029424,1736944244355,-604.24,0.00020131,3]
[349029425,1736944244364,-500.0,0.00020131,3]
[349029426,1736944244374,-500.0,0.00020131,3]
[349029427,1736944244384,-500.0,0.00020131,3]
[349029428,1736944244394,-500.0,0.00020131,3]
[349029429,1736944244404,-500.0,0.00020131,3]
[349029430,1736944244414,-500.0,0.00020131,3]
[349029431,1736944244423,-500.0,0.00020131,3]
[349029432,1736944244433,-618.53211345,0.00020131,3]
[349029433,1736944244442,-500.0,0.00020131,3]
[349029434,1736944244452,-500.0,0.00020131,3]
[349029435,1736944244461,-4188.84,0.00020131,3]
[349029436,1736944244471,-513.67798133,0.00020131,3]
[349029437,1736944244480,-500.0,0.00020131,3]
[349029438,1736944244489,-3855.6,0.00020132,3]
[349029439,1736944244499,-344.373,0.0002017,2]
[349029440,1736944244509,-2553.94,0.000202,2]
[349029441,1736944244519,-884.67,0.00020264,3]
[349029442,1736944244529,-500.0,0.00020264,3]
[349029443,1736944244538,-500.0,0.00020264,3]
[349029444,1736944244547,-500.0,0.00020265,3]
[349029445,1736944244557,-922.1,0.00020265,3]
[349029446,1736944244567,-588.73,0.00020265,3]
[349029447,1736944244577,-500.0,0.00020265,3]
[349029448,1736944244587,-500.0,0.00020265,3]
[349029449,1736944244596,-500.0,0.00020265,3]
[349029450,1736944244606,-722.24,0.00020265,3]
[349029451,1736944244615,-500.0,0.00020265,3]
[349029452,1736944244626,-500.0,0.00020265,3]
[349029453,1736944244637,-644.29,0.00020265,3]
[349029454,1736944244646,-581.19,0.00020265,3]
[349029455,1736944244656,-870.67,0.00020265,3]
[349029456,1736944244665,-594.37,0.00020265,3]
[349029457,1736944244675,-17754.08,0.00020265,3]
[349029458,1736944244684,-500.0,0.00020265,3]
[349029459,1736944244694,-550.36,0.00020266,3]
[349029460,1736944244704,-500.0,0.00020266,3]
[349029461,1736944244713,-500.0,0.00020266,3]
[349029462,1736944244723,-500.0,0.00020266,3]
[349029463,1736944244733,-500.0,0.00020266,3]
[349029464,1736944244743,-500.0,0.00020266,3]
[349029465,1736944244752,-12842.54,0.00020266,3]
[349029466,1736944244762,-502.04,0.00020266,3]
[349029467,1736944244771,-500.0,0.00020266,3]
[349029468,1736944244781,-500.0,0.00020267,3]
[349029469,1736944244791,-500.0,0.00020267,3]
[349029470,1736944244800,-500.0,0.00020267,3]
[349029471,1736944244809,-297.81200281,0.00020267,3]
[349029472,1736944244819,-225.3,0.00020267,3]
[349029473,1736944244828,-500.0,0.00020267,3]
[349029474,1736944244838,-500.0,0.00020267,3]
[349029475,1736944244848,-500.0,0.00020267,3]
[349029476,1736944244858,-251.16180387,0.00020267,3]
[349029477,1736944244867,-500.0,0.00020267,2]
[349029478,1736944244877,-500.0,0.00020267,3]
[349029479,1736944244889,-500.0,0.00020267,3]
[349029480,1736944244898,-500.0,0.00020267,3]
[349029481,1736944244908,-500.0,0.00020267,3]
[349029482,1736944244919,-500.0,0.00020267,3]
[349029483,1736944244930,-500.0,0.00020267,3]
[349029484,1736944244940,-500.0,0.00020267,3]
[349029485,1736944244950,-500.0,0.00020267,3]
[349029486,1736944244959,-500.0,0.00020267,3]
[349029487,1736944244969,-500.0,0.00020268,3]
[349029488,1736944244979,-500.0,0.00020268,3]
[349029489,1736944244989,-500.0,0.00020268,3]
[349029490,1736944245000,-2046.57,0.00020268,3]
[349029491,1736944245011,-1536.16,0.00020268,3]
[349029492,1736944245021,-500.0,0.00020268,3]
[349029493,1736944245031,-500.0,0.00020268,3]
[349029494,1736944245041,-500.0,0.00020268,3]
[349029495,1736944245051,-604.24,0.00020268,3]
[349029496,1736944245061,-500.0,0.00020268,3]
[349029497,1736944245071,-500.0,0.00020268,3]
[349029498,1736944245080,-500.0,0.00020268,3]
[349029499,1736944245090,-500.0,0.00020268,3]
[349029500,1736944245100,-250.61167338,0.00020268,3]
[349029501,1736944245109,-500.0,0.00020268,3]
[349029502,1736944245119,-527.20193576,0.00020268,3]
[349029503,1736944245128,-500.0,0.00020268,3]
[349029504,1736944245140,-500.0,0.00020268,3]
[349029505,1736944245150,-4188.84,0.00020268,3]
[349029506,1736944245159,-500.0,0.00020268,3]
[349029507,1736944245169,-3855.6,0.00020269,3]
[349029508,1736944245179,-884.67,0.00020401,3]
[349029509,1736944245188,-500.0,0.00020401,3]
[349029510,1736944245198,-500.0,0.00020401,3]
[349029511,1736944245208,-922.1,0.00020402,3]
[349029512,1736944245218,-588.73,0.00020402,3]
[349029513,1736944245227,-500.0,0.00020402,3]
[349029514,1736944245237,-500.0,0.00020402,3]
[349029515,1736944245247,-722.24,0.00020402,3]
[349029516,1736944245257,-500.0,0.00020402,3]
[349029517,1736944245267,-500.0,0.00020402,3]
[349029518,1736944245277,-644.29,0.00020402,3]
[349029519,1736944245287,-581.19,0.00020402,3]
[349029520,1736944245296,-870.67,0.00020402,3]
[349029521,1736944245306,-594.37,0.00020402,3]
[349029522,1736944245315,-17754.08,0.00020402,3]
[349029523,1736944245325,-550.36,0.00020403,3]
[349029524,1736944245335,-500.0,0.00020403,3]
[349029525,1736944245345,-500.0,0.00020403,3]
[349029526,1736944245354,-500.0,0.00020403,3]
[349029527,1736944245364,-500.0,0.00020403,3]
[349029528,1736944245374,-500.0,0.00020403,3]
[349029529,1736944245385,-12842.54,0.00020403,3]
[349029530,1736944245394,-502.04,0.00020403,3]
[349029531,1736944245404,-500.0,0.00020403,3]
[349029532,1736944245414,-500.0,0.00020404,3]
[349029533,1736944245424,-500.0,0.00020404,3]
[349029534,1736944245433,-500.0,0.00020404,3]
[349029535,1736944245443,-500.0,0.00020404,3]
[349029536,1736944245453,-500.0,0.00020404,3]
[349029537,1736944245462,-500.0,0.00020404,3]
[349029538,1736944245472,-500.0,0.00020404,2]
[349029539,1736944245481,-500.0,0.00020404,3]
[349029540,1736944245491,-500.0,0.00020404,3]
[349029541,1736944245500,-500.0,0.00020404,3]
[349029542,1736944245510,-500.0,0.00020404,3]
[349029543,1736944245520,-500.0,0.00020404,3]
[349029544,1736944245530,-500.0,0.00020404,3]
[349029545,1736944245539,-500.0,0.00020404,3]
[349029546,1736944245549,-500.0,0.00020404,3]
[349029547,1736944245559,-500.0,0.00020405,3]
[349029548,1736944245568,-500.0,0.00020405,3]
[349029549,1736944245578,-500.0,0.00020405,3]
[349029550,1736944245587,-2046.57,0.00020405,3]
[349029551,1736944245596,-1536.16,0.00020405,3]
[349029552,1736944245606,-500.0,0.00020405,3]
[349029553,1736944245615,-500.0,0.00020405,3]
[349029554,1736944245625,-500.0,0.00020405,3]
[349029555,1736944245635,-604.24,0.00020405,3]
[349029556,1736944245645,-500.0,0.00020405,3]
[349029557,1736944245655,-500.0,0.00020405,3]
[349029558,1736944245664,-500.0,0.00020405,3]
[349029559,1736944245674,-500.0,0.00020405,3]
[349029560,1736944245683,-500.0,0.00020405,3]
[349029561,1736944245693,-500.0,0.00020405,3]
[349029562,1736944245703,-500.0,0.00020405,3]
[349029563,1736944245712,-4188.84,0.00020405,3]
[349029564,1736944245724,-3855.6,0.00020406,3]
[349029565,1736944245733,-884.67,0.00020538,3]
[349029566,1736944245744,-500.0,0.00020538,3]
[349029567,1736944245755,-500.0,0.00020538,3]
[349029568,1736944245765,-922.1,0.00020539,3]
[349029569,1736944245775,-588.73,0.00020539,3]
[349029570,1736944245785,-500.0,0.00020539,3]
[349029571,1736944245795,-500.0,0.00020539,3]
[349029572,1736944245804,-722.24,0.00020539,3]
[349029573,1736944245814,-500.0,0.00020539,3]
[349029574,1736944245823,-500.0,0.00020539,3]
[349029575,1736944245833,-644.29,0.00020539,3]
[349029576,1736944245843,-581.19,0.00020539,3]
[349029577,1736944245853,-870.67,0.00020539,3]
[349029578,1736944245863,-594.37,0.00020539,3]
[349029579,1736944245872,-17754.08,0.00020539,3]
[349029580,1736944245882,-550.36,0.0002054,3]
[349029581,1736944245892,-500.0,0.0002054,3]
[349029582,1736944245902,-500.0,0.0002054,3]
[349029583,1736944245913,-500.0,0.0002054,3]
[349029584,1736944245924,-500.0,0.0002054,3]
[349029585,1736944245934,-500.0,0.0002054,3]
[349029586,1736944245944,-12842.54,0.0002054,3]
[349029594,1736944246034,-502.04,0.0002054,3]
[349029595,1736944246044,-500.0,0.0002054,3]
[349029596,1736944246054,-500.0,0.00020541,3]
[349029597,1736944246063,-500.0,0.00020541,3]
[349029598,1736944246073,-500.0,0.00020541,3]
[349029599,1736944246083,-415.34,0.00020541,3]
[349029600,1736944246092,-500.0,0.00020541,3]
[349029601,1736944246102,-500.0,0.00020541,3]
[349029602,1736944246112,-500.0,0.00020541,2]
[349029603,1736944246122,-500.0,0.00020541,3]
[349029604,1736944246131,-500.0,0.00020541,3]
[349029605,1736944246142,-500.0,0.00020541,3]
[349029606,1736944246151,-500.0,0.00020541,3]
[349029607,1736944246161,-500.0,0.00020541,3]
[349029608,1736944246170,-500.0,0.00020541,3]
[349029609,1736944246179,-500.0,0.00020541,3]
[349029610,1736944246189,-500.0,0.00020541,3]
[349029611,1736944246199,-227.2,0.00020542,3]
[349029612,1736944246208,-500.0,0.00020542,3]
[349029613,1736944246217,-500.0,0.00020542,3]
[349029614,1736944246227,-2046.57,0.00020542,3]
[349029615,1736944246236,-1536.16,0.00020542,3]
[349029616,1736944246247,-500.0,0.00020542,3]
[349029617,1736944246257,-500.0,0.00020542,3]
[349029618,1736944246267,-604.24,0.00020542,3]